bitfinex-derivatives/quotes_ETHF0:USTF0_20250331
["timestamp","ask_amount","ask_price","bid_price","bid_amount"]
[1743436958126,3.95006,1846.5,1846.4,1.08327]
[1743436958324,2.51666,1846.5,1846.4,1.08327]
[1743436958525,1.4334,1846.5,1846.4,2.48517]
[1743436958824,1.08327,1846.4,1846.3,1.08329]
[1743436961634,1.08333,1846.3,1846.2,2.5705578]
[1743436962032,3.879,1846.4,1846.3,1.08333]
[1743436962330,2.51663,1846.5,1846.4,1.08327]
[1743436962525,0.7063,1846.5,1846.4,1.08327]
[1743436962726,4.96215,1846.6,1846.5,1.08321]
[1743436962926,3.879,1846.6,1846.5,1.08321]
[1743436963133,3.879,1846.7,1846.6,1.08315]
[1743436963429,6.33004,1846.8,1846.7,1.08309]
[1743436963933,5.247,1846.8,1846.7,1.08309]
[1743436964133,5.247,1846.8,1846.7,2.57599]
[1743436964339,2.45104,1846.8,1846.7,2.57599]
[1743436965836,2.45104,1846.8,1846.7,1.4929]
[1743436966039,2.45104,1846.8,1846.7,2.57599]
[1743436966539,4.2989378,1846.9,1846.8,1.08304]
[1743436966732,8.1769378,1846.9,1846.8,2.48594]
[1743436969540,8.1769378,1846.9,1846.8,1.4029]
[1743436969743,9.5430378,1846.9,1846.8,2.48594]
[1743436970236,3.2078,1848.0,1846.9,2.70741]
[1743436970432,9.8865,1848.0,1847.4,2.70672]
[1743436970732,3.2078,1847.5,1847.1,4.29063]
[1743436970926,2.9003,1847.4,1847.3,1.08274]
[1743436971438,3.98303,1847.4,1847.3,1.08274]
[1743436971936,2.9003,1847.4,1847.3,1.08274]
[1743436972330,3.98298,1847.4,1847.3,1.08274]
[1743436972737,1.08274,1847.3,1847.2,2.4706878]
[1743436972936,2.54744,1847.3,1847.2,1.3879378]
[1743436973137,2.54744,1847.3,1847.2,0.0081378]
[1743436973336,1.08289,1847.1,1847.0,1.0829]
[1743436973639,1.08292,1847.0,1846.9,2.46274]
[1743436973840,3.17862,1847.0,1846.9,2.46274]
[1743436974040,3.17862,1847.0,1846.9,1.3798]
[1743436974633,2.0957,1847.0,1846.9,2.46278]
[1743436974940,3.17862,1847.0,1846.9,2.46278]
[1743436976435,3.92972,1847.0,1846.9,2.46278]
[1743436979342,2.8468,1847.0,1846.9,2.46278]
[1743436979541,3.92972,1847.0,1846.9,2.46278]
[1743436981739,3.92972,1847.0,1846.8,3.2159378]
[1743436981740,1.08298,1846.9,1846.8,0.0081378]
[1743436981946,1.08321,1846.5,1846.4,3.2078]
[1743436982434,7.8218,1846.6,1846.5,1.08321]
[1743436982633,6.3669,1846.6,1846.5,1.08321]
[1743436982833,1.08321,1846.5,1846.4,5.77852]
[1743436983037,1.08321,1846.5,1846.4,5.7866578]
[1743436983241,5.2837,1846.6,1846.4,4.7034378]
[1743436983435,1.08321,1846.5,1846.4,4.7034378]
[1743436983635,1.08321,1846.5,1846.4,0.0081378]
[1743436984049,1.08321,1846.5,1846.4,1.4956378]
[1743436984240,1.08321,1846.5,1846.4,2.5789078]
[1743436984852,5.2837,1846.6,1846.5,1.08321]
[1743436985143,5.2837,1846.6,1846.5,2.57071]
[1743436985545,2.49185,1846.6,1846.5,1.4875]
[1743436985751,6.36585,1846.6,1846.5,2.57071]
[1743436986046,6.36585,1846.6,1846.5,1.4875]
[1743436986243,6.36585,1846.6,1846.5,2.57071]
[1743436987247,6.36585,1846.6,1846.5,1.4875]
[1743436987547,1.08321,1846.5,1846.4,0.0081378]
[1743436987739,1.08321,1846.5,1846.4,1.0914078]
[1743436988245,6.36591,1846.6,1846.5,1.08321]
[1743436988446,6.36591,1846.6,1846.5,2.50921]
[1743436988747,6.36591,1846.6,1846.5,1.426]
[1743436989843,6.36591,1846.6,1846.5,2.50921]
[1743436990546,6.36591,1846.6,1846.5,1.426]
[1743436991050,1.08321,1846.5,1846.4,1.0914078]
[1743436992142,1.08321,1846.5,1846.4,0.0081378]
[1743436992536,1.08321,1846.5,1846.1,1.08343]
[1743436992740,1.08338,1846.3,1846.2,1.08337]
[1743436992948,4.95738,1846.3,1846.2,1.08337]
[1743436993348,1.08339,1846.2,1846.1,2.5512]
[1743436993642,0.7195,1846.2,1846.1,2.5512]
[1743436994147,1.80289,1846.2,1846.1,2.5512]
[1743436995049,1.80289,1846.2,1846.1,1.4678]
[1743436995344,1.08345,1846.1,1846.0,1.0916278]
[1743436995753,1.81475,1846.1,1846.0,0.0081378]
[1743436996548,1.81475,1846.1,1846.0,1.3717378]
[1743436997349,1.81475,1846.1,1846.0,2.4552478]
[1743436997545,1.81475,1846.1,1846.0,1.3717378]
[1743436997751,1.81475,1846.1,1846.0,0.0081378]
[1743436998539,1.81475,1846.1,1845.6,4.29151]
[1743436998540,1.08368,1845.7,1845.6,4.29151]
[1743436998850,1.08374,1845.6,1845.5,1.08374]
[1743436999043,1.83304,1845.6,1845.5,1.08374]
[1743436999444,1.83304,1845.6,1845.4,1.08381]
[1743436999445,1.08381,1845.5,1845.4,1.08381]
[1743436999752,1.08381,1845.5,1845.4,1.0919778]
[1743436999951,1.435,1845.5,1845.4,2.4633778]
[1743437000150,0.7493,1845.6,1845.5,1.0838]
[1743437000448,0.7493,1845.6,1845.5,2.4552]
[1743437000749,1.83304,1845.6,1845.5,1.3714]
[1743437000949,3.26804,1845.6,1845.5,1.3714]
[1743437001747,3.96554,1845.6,1845.5,2.4552]
[1743437002551,3.96554,1845.6,1845.5,1.3714]
[1743437003748,1.0838,1845.5,1845.4,0.0081378]
[1743437004055,2.4517,1845.5,1845.4,0.0081378]
[1743437005147,5.6595,1845.5,1845.4,0.0081378]
[1743437005749,2.4517,1845.5,1845.4,0.0081378]
[1743437006050,5.6595,1845.5,1845.4,0.0081378]
[1743437006350,1.08404,1845.1,1845.0,1.08406]
[1743437006555,4.95704,1845.1,1845.0,2.45306]
[1743437006848,4.95704,1845.1,1845.0,1.369]
[1743437007752,6.39394,1845.1,1845.0,1.369]
[1743437007942,6.39394,1845.1,1844.9,0.0081378]
[1743437007943,1.08409,1845.0,1844.9,0.0081378]
[1743437008253,2.52099,1845.0,1844.9,0.0081378]
[1743437008448,2.52099,1845.0,1844.9,1.4410378]
[1743437008846,1.4369,1845.0,1844.9,1.4410378]
[1743437009149,4.95707,1845.1,1845.0,1.08409]
[1743437009350,4.95707,1845.1,1844.9,1.4410378]
[1743437009351,1.08409,1845.0,1844.9,2.5251478]
[1743437009553,4.95708,1845.1,1844.9,2.5251478]
[1743437009854,6.39398,1845.1,1845.0,1.4329]
[1743437010249,6.39393,1845.1,1845.0,1.4329]
[1743437010659,6.39393,1845.1,1845.0,2.51699]
[1743437010859,6.39393,1845.1,1845.0,1.4329]
[1743437011358,3.873,1845.1,1845.0,2.51699]
[1743437011654,4.95703,1845.1,1845.0,2.51699]
[1743437013054,3.873,1845.1,1845.0,2.51699]
[1743437013655,4.95703,1845.1,1845.0,2.51699]
[1743437013856,5.2836,1845.1,1845.0,2.51699]
[1743437014057,3.873,1845.1,1845.0,2.51699]
[1743437014659,6.36763,1845.1,1845.0,2.51699]
[1743437014959,3.873,1845.1,1845.0,2.51699]
[1743437015157,4.95703,1845.1,1845.0,2.51699]
[1743437015462,4.95703,1845.1,1845.0,1.4329]
[1743437015658,6.36763,1845.1,1845.0,1.4329]
[1743437015961,6.36763,1845.1,1844.9,0.0081378]
[1743437015962,1.08409,1845.0,1844.9,0.0081378]
[1743437016155,3.18359,1845.0,1844.9,0.0081378]
[1743437016555,3.18359,1845.0,1844.9,1.4958378]
[1743437016850,0.7072378,1845.2,1844.9,4.7036378]
[1743437017056,1.7912278,1845.2,1845.1,1.08403]
[1743437017265,0.0081378,1845.2,1845.1,1.08403]
[1743437017458,3.8811378,1845.2,1845.1,5.77953]
[1743437017762,0.0081378,1845.2,1845.1,5.77953]
[1743437018359,3.873,1845.4,1845.3,1.08392]
[1743437018657,57.31978,1846.0,1845.7,1.08368]
[1743437018658,1.82112,1845.8,1845.7,1.08368]
[1743437018856,0.7102,1845.9,1845.8,1.08362]
[1743437019050,3.873,1845.9,1845.8,1.08362]
[1743437019263,4.95656,1845.9,1845.8,1.08362]
[1743437019456,6.32776,1845.9,1845.8,1.3763]
[1743437019764,6.32776,1845.9,1845.8,2.45992]
[1743437019955,5.2442,1845.9,1845.8,2.45992]
[1743437020153,5.2442,1845.9,1845.8,1.3763]
[1743437020154,6.32776,1845.9,1845.8,1.3763]
[1743437020353,6.32776,1845.9,1845.4,3.2078]
[1743437020354,2.70906,1845.8,1845.4,4.29163]
[1743437020559,1.08378,1845.6,1845.4,5.66793]
[1743437020759,4.95678,1845.6,1845.5,1.3763]
[1743437021463,4.95678,1845.6,1845.5,2.4601]
[1743437021664,4.95678,1845.6,1845.5,1.3763]
[1743437021860,4.95678,1845.6,1845.5,2.4601]
[1743437022355,4.95678,1845.6,1845.5,1.3763]
[1743437023056,4.95678,1845.6,1845.5,2.4601]
[1743437023256,4.95678,1845.6,1845.5,1.3763]
[1743437024259,1.0838,1845.5,1845.4,3.2078]
[1743437024566,1.7655,1845.5,1845.4,4.667]
[1743437025356,1.7655,1845.5,1845.4,5.75086]
[1743437025761,1.7655,1845.5,1845.4,4.667]
[1743437025964,1.7655,1845.5,1845.4,5.75086]
[1743437026355,1.7655,1845.5,1845.4,4.667]
[1743437028660,1.7655,1845.5,1845.4,5.75086]
[1743437028867,1.7655,1845.5,1845.4,4.667]
[1743437029070,1.7655,1845.5,1845.4,5.75086]
[1743437030264,1.08375,1845.6,1845.5,1.08375]
[1743437030465,3.871,1845.5,1845.4,4.29161]
[1743437030766,4.9548,1845.5,1845.4,4.29161]
[1743437031162,3.871,1845.5,1845.4,4.29161]
[1743437032968,4.9548,1845.5,1845.4,4.29161]
[1743437033658,3.871,1845.5,1845.4,4.29161]
[1743437033968,4.9548,1845.5,1845.4,4.29161]
[1743437035069,3.871,1845.5,1845.4,4.29161]
[1743437035267,4.9548,1845.5,1845.4,4.29161]
[1743437035474,3.871,1845.5,1845.4,4.29161]
[1743437035769,1.08376,1845.6,1845.5,1.0838]
[1743437035967,4.95376,1845.6,1845.5,1.0838]
[1743437036163,3.87,1845.6,1845.5,1.0838]
[1743437036367,1.08371,1845.7,1845.6,1.08371]
[1743437036567,4.95371,1845.7,1845.6,1.08371]
[1743437036870,1.08377,1845.6,1845.5,1.08377]
[1743437037068,1.0838,1845.5,1845.4,4.29162]
[1743437037373,1.08379,1845.6,1845.5,1.08379]
[1743437038060,1.0838,1845.5,1845.4,4.2916]
[1743437038258,1.08379,1845.6,1845.5,1.08379]
[1743437038670,1.0838,1845.5,1845.4,4.2916]
[1743437040467,1.7777,1845.5,1845.4,4.2916]
[1743437041363,3.869,1845.7,1845.5,1.0838]
[1743437041571,0.7102,1845.8,1845.7,1.08368]
[1743437041773,4.5792,1845.8,1845.7,1.08368]
[1743437042069,0.0081378,1846.0,1845.9,1.08356]
[1743437042261,0.0081378,1846.0,1845.9,4.29136]
[1743437044485,1.0916478,1846.0,1845.9,3.2078]
[1743437044669,2.4584478,1846.0,1845.9,3.2078]
[1743437044871,2.0556378,1846.0,1845.9,3.2078]
[1743437045072,0.0081378,1846.0,1845.9,4.29136]
[1743437045879,1.0916478,1846.0,1845.9,4.29136]
[1743437046377,1.3749378,1846.0,1845.9,4.29136]
[1743437046578,2.4584478,1846.0,1845.9,4.29136]
[1743437047178,2.4584478,1846.0,1845.9,3.2078]
[1743437047477,2.4584478,1846.0,1845.5,3.2078]
[1743437047478,1.08374,1845.6,1845.5,3.2078]
[1743437047778,1.08391,1845.4,1845.3,3.2078]
[1743437047965,1.08391,1845.4,1845.3,4.29172]
[1743437048169,3.91875,1845.5,1845.3,4.29172]
[1743437048380,1.3844,1845.4,1845.3,4.29172]
[1743437048877,2.5343,1845.5,1845.4,1.08386]
[1743437049270,1.08386,1845.4,1845.3,3.2078]
[1743437049465,2.46826,1845.4,1845.3,3.2078]
[1743437049875,2.46826,1845.4,1845.3,4.6656]
[1743437050271,2.46826,1845.4,1845.3,1.4578]
[1743437050675,2.46826,1845.4,1845.3,2.54172]
[1743437050978,2.53433,1845.5,1845.3,2.54172]
[1743437051176,2.53433,1845.5,1845.4,2.54166]
[1743437051480,0.7306,1845.5,1845.4,2.54166]
[1743437051679,1.8144,1845.5,1845.4,2.54166]
[1743437051980,0.7306,1845.5,1845.4,2.54166]
[1743437052770,1.8144,1845.5,1845.4,2.54166]
[1743437052973,1.8144,1845.5,1845.4,1.4578]
[1743437053679,3.2427,1845.5,1845.4,1.4578]
[1743437053981,1.08386,1845.4,1845.3,3.2078]
[1743437054276,3.20936,1845.4,1845.3,3.2078]
[1743437054781,3.20936,1845.4,1845.3,4.6307]
[1743437061979,1.08409,1845.0,1844.9,0.0081378]
[1743437062183,4.95009,1845.0,1844.9,0.0081378]
[1743437062870,6.42849,1845.0,1844.9,0.0081378]
[1743437063580,1.08433,1844.6,1844.5,3.2078]
[1743437063882,1.08433,1844.6,1844.5,4.29219]
[1743437064775,6.3457178,1844.7,1844.5,3.2078]
[1743437064980,4.5797378,1844.7,1844.6,2.58223]
[1743437065276,3.866,1845.0,1844.6,1.4979]
[1743437065479,1.08418,1844.9,1844.8,1.08419]
[1743437065682,1.08418,1844.9,1844.8,2.58209]
[1743437065881,1.08418,1844.9,1844.8,1.4979]
[1743437066087,3.29808,1844.9,1844.8,1.4979]
[1743437067188,1.08427,1844.7,1844.5,5.00374]
[1743437067383,1.08427,1844.7,1844.6,1.4979]
[1743437067580,3.866,1844.7,1844.6,2.58223]
[1743437067784,4.5729,1844.7,1844.6,2.58223]
[1743437067984,4.5767,1844.9,1844.7,1.08425]
[1743437068187,5.6609,1844.9,1844.8,1.08421]
[1743437068485,0.0081378,1845.0,1844.9,1.08415]
[1743437068791,1.0922278,1845.0,1844.9,1.08415]
[1743437068990,1.0922278,1845.0,1844.9,1.4415]
[1743437069382,2.5311278,1845.0,1844.9,1.4415]
[1743437070083,2.5311278,1845.0,1844.9,2.52565]
[1743437070283,1.0922278,1845.0,1844.9,2.52565]
[1743437071193,1.0922278,1845.0,1844.9,1.4415]
[1743437071489,2.5492278,1845.0,1844.9,2.52565]
[1743437071689,1.0922278,1845.0,1844.9,2.52565]
[1743437072494,2.5492278,1845.0,1844.9,1.4415]
[1743437073593,2.5492278,1845.0,1844.9,2.52565]
[1743437073797,2.5492278,1845.0,1844.9,1.4415]
[1743437075496,1.08433,1844.6,1844.5,3.2078]
[1743437075791,1.08433,1844.6,1844.5,4.6917]
[1743437076197,2.52093,1844.6,1844.5,4.6917]
[1743437076388,2.52093,1844.6,1844.5,5.77609]
[1743437076885,2.52093,1844.6,1844.5,4.6917]
[1743437077093,2.52093,1844.6,1844.5,5.77609]
[1743437077288,5.9262378,1845.0,1844.5,4.6917]
[1743437077493,0.0081378,1845.0,1844.9,1.08415]
[1743437077691,0.0081378,1845.0,1844.9,4.29195]
[1743437078199,0.0081378,1845.0,1844.9,5.73625]
[1743437080699,3.864,1845.4,1845.1,2.71002]
[1743437080901,3.864,1845.4,1845.3,4.29172]
[1743437081303,2.1446,1845.6,1845.3,4.6606]
[1743437081506,0.6915,1845.6,1845.5,4.2916]
[1743437082007,3.8721378,1845.7,1845.6,1.08374]
[1743437082307,4.9558178,1845.7,1845.6,2.53654]
[1743437083005,0.0081378,1845.7,1845.6,2.53654]
[1743437084306,1.0918178,1845.7,1845.6,1.4528]
[1743437084606,0.0081378,1845.7,1845.6,2.53654]
[1743437085900,0.0081378,1845.7,1845.6,3.23544]
[1743437095106,7.8e-06,1845.7,1845.6,15.44144]
[1743437095305,60.686,1846.4,1846.3,1.08333]
[1743437095508,60.686,1846.4,1846.3,4.29113]
[1743437095711,6.047,1846.4,1846.3,4.29113]
[1743437096414,7.13027,1846.4,1846.3,4.29113]
[1743437096614,6.047,1846.4,1846.3,4.29113]
[1743437096810,7.13027,1846.4,1846.3,3.2078]
[1743437097015,1.08351,1846.1,1846.0,1.08347]
[1743437097417,4.94351,1846.1,1846.0,1.08347]
[1743437097715,1.08351,1846.0,1845.9,2.49423]
[1743437097917,2.58921,1846.0,1845.9,2.49423]
[1743437098510,2.58921,1846.0,1845.9,1.08353]
[1743437098919,1.0836,1845.9,1845.8,1.08356]
[1743437099117,2.4489,1845.9,1845.8,1.08356]
[1743437099918,2.44892,1845.9,1845.8,1.08362]
[1743437100217,2.44892,1845.9,1845.8,2.50262]
[1743437100418,2.44892,1845.9,1845.8,1.08362]
[1743437101411,2.44886,1845.9,1845.8,1.08362]
[1743437101619,1.3653,1845.9,1845.8,1.08362]
[1743437101820,1.3653,1845.9,1845.8,2.50972]
[1743437102708,1.4417,1846.0,1845.9,1.08356]
[1743437102913,1.4417,1846.0,1845.9,2.50966]
[1743437103912,2.8079,1846.0,1845.9,2.50966]
[1743437104719,3.859,1846.3,1846.0,2.70863]
[1743437104912,3.859,1846.3,1846.2,1.08339]
[1743437105218,6.34863,1846.3,1846.2,1.08339]
[1743437106518,1.08339,1846.2,1846.1,2.4998]
[1743437106711,2.48969,1846.2,1846.1,1.0834]
[1743437107024,1.08347,1846.1,1846.0,2.49986]
[1743437107212,3.21737,1846.1,1846.0,2.49986]
[1743437107409,3.21735,1846.1,1846.0,2.49986]
[1743437107623,2.1339,1846.1,1846.0,2.49986]
[1743437107816,3.21735,1846.1,1846.0,2.49986]
[1743437110622,3.21735,1846.1,1846.0,1.4164]
[1743437110821,3.21735,1846.1,1846.0,2.49991]
[1743437111223,3.857,1846.3,1846.2,1.08333]
[1743437111524,1.08339,1846.2,1846.1,2.45651]
[1743437111817,1.08351,1846.1,1846.0,1.08346]
[1743437113522,1.08351,1846.1,1846.0,2.55406]
[1743437113719,2.57253,1846.2,1846.1,1.08345]
[1743437113925,1.4891,1846.2,1846.1,2.55405]
[1743437114117,2.57249,1846.2,1846.1,2.55405]
[1743437115213,1.8361,1846.4,1846.1,4.6784]
[1743437115423,3.2751,1846.4,1846.3,1.08333]
[1743437115826,3.2751,1846.4,1846.3,2.55393]
[1743437116123,2.1918,1846.4,1846.3,2.55393]
[1743437117020,3.27507,1846.4,1846.3,2.55393]
[1743437121220,1.08335,1846.3,1846.2,1.08334]
[1743437121523,2.1581,1846.3,1846.2,2.46824]
[1743437121929,3.24143,1846.3,1846.2,2.46824]
[1743437123026,2.1581,1846.3,1846.2,2.46824]
[1743437123521,0.0081378,1846.5,1846.2,4.09324]
[1743437123722,1.0833,1846.4,1846.3,2.51997]
[1743437123917,1.0833,1846.4,1846.3,2.52003]
[1743437124121,2.5728,1846.4,1846.3,2.52003]
[1743437125628,1.08345,1846.1,1846.0,3.2078]
[1743437125927,8.14619,1846.2,1846.1,1.4565]
[1743437126225,10.29219,1846.2,1846.1,1.4565]
[1743437126820,2.70862,1846.1,1845.2,15.62374]
[1743437127025,2.70862,1846.1,1845.3,2.4981]
[1743437127026,1.0838,1845.5,1845.3,2.4981]
[1743437127225,1.0838,1845.5,1845.4,1.0919978]
[1743437127532,6.7398,1845.6,1845.5,1.0838]
[1743437127926,3.854,1845.6,1845.5,1.0838]
[1743437128230,4.93774,1845.6,1845.5,1.0838]
[1743437128429,1.0838,1845.5,1845.4,2.5484478]
[1743437128634,6.32588,1845.6,1845.5,1.0838]
[1743437128929,6.32588,1845.6,1845.5,2.4868]
[1743437129323,5.2421,1845.6,1845.5,2.4868]
[1743437129523,6.31726,1845.8,1845.7,1.08368]
[1743437129721,4.93766,1845.8,1845.7,1.08368]
[1743437130026,1.08368,1845.7,1845.6,3.17399]
[1743437130335,6.32577,1845.8,1845.7,1.08368]
[1743437130526,1.08368,1845.7,1845.6,0.6873]
[1743437130724,1.3881,1845.7,1845.4,1.0919578]
[1743437130933,1.08379,1845.6,1845.5,1.08378]
[1743437131233,1.0838,1845.5,1845.4,1.7792578]
[1743437131430,4.9378,1845.5,1845.4,0.0081378]
[1743437131624,1.08403,1845.1,1845.0,1.4094]
[1743437131824,1.08422,1844.8,1844.7,1.08423]
[1743437132029,9.7719,1845.1,1844.5,5.91863]
[1743437132030,2.9587,1845.0,1844.6,1.4094]
[1743437132230,1.08427,1844.7,1844.6,1.4094]
[1743437132424,1.08427,1844.7,1844.6,0.6873]
[1743437132629,2.56857,1844.7,1844.6,0.6873]
[1743437133638,1.08433,1844.6,1844.5,3.2159378]
[1743437133832,2.56863,1844.6,1844.5,3.2159378]
[1743437134439,2.56863,1844.6,1844.5,0.0081378]
[1743437135443,1.08449,1844.4,1843.9,5.91964]
[1743437135737,1.3646,1844.3,1844.2,1.08456]
[1743437136331,1.3646,1844.3,1843.9,5.91964]
[1743437136332,2.44912,1844.3,1844.1,1.08458]
[1743437136736,2.44912,1844.3,1844.0,0.0081378]
[1743437136938,2.44912,1844.3,1844.1,1.08457]
[1743437137134,1.3646,1844.3,1844.0,0.0081378]
[1743437137435,1.08462,1844.1,1844.0,1.0928178]
[1743437137836,1.3646,1844.3,1844.1,1.08459]
[1743437138037,2.44914,1844.3,1844.1,1.08459]
[1743437138238,2.44914,1844.3,1844.2,1.08456]
[1743437138729,2.44914,1844.3,1844.1,1.08457]
[1743437138931,1.3646,1844.3,1844.1,1.08457]
[1743437139134,2.44914,1844.3,1844.1,1.08457]
[1743437139331,1.3646,1844.3,1844.0,0.0081378]
[1743437139643,1.4817,1844.2,1844.1,1.08462]
[1743437139840,1.4817,1844.2,1844.1,4.29242]
[1743437140040,1.3921,1844.5,1844.4,1.08445]
[1743437140241,1.08437,1844.6,1844.3,3.2078]
[1743437140242,3.855,1844.6,1844.3,3.2078]
[1743437140436,5.3367,1844.6,1844.4,1.08441]
[1743437140639,1.4149,1844.5,1844.4,1.08441]
[1743437140836,2.51559,1844.7,1844.6,1.08433]
[1743437141031,6.7012,1844.7,1844.6,1.08433]
[1743437141733,3.855,1844.7,1844.6,1.08433]
[1743437142136,0.0081378,1844.8,1844.7,1.08427]
[1743437142444,0.0081378,1844.8,1844.7,4.29207]
[1743437146037,7.8e-06,1844.8,1844.7,6.79207]
[1743437146239,7.8e-06,1844.8,1844.7,10.64607]
[1743437147040,7.8e-06,1844.8,1844.7,20.35207]
[1743437148053,58.94045,1845.8,1845.7,1.08368]
[1743437148248,62.79445,1845.8,1845.7,1.08368]
[1743437148645,58.94045,1845.8,1845.7,1.08368]
[1743437149045,55.73265,1845.8,1845.7,1.08368]
[1743437149347,1.08368,1845.7,1845.6,1.0918378]
[1743437149652,2.58188,1845.7,1845.6,1.0918378]
[1743437150345,2.58188,1845.7,1845.6,0.0081378]
[1743437150746,1.08386,1845.4,1845.3,4.29171]
[1743437151451,1.08392,1845.3,1845.2,2.47373]
[1743437151750,1.08392,1845.3,1845.2,1.08393]
[1743437151949,2.56912,1845.3,1845.2,1.08393]
[1743437153249,1.4852,1845.3,1845.2,1.08393]
[1743437153751,2.56912,1845.3,1845.2,1.08393]
[1743437154450,1.4852,1845.3,1845.2,1.08393]
[1743437154651,2.56912,1845.3,1845.2,1.08393]
[1743437155049,1.08398,1845.2,1845.1,1.0921678]
[1743437155352,2.53318,1845.2,1845.1,2.4810678]
[1743437156048,2.53318,1845.2,1845.1,1.3970378]
[1743437156356,2.53318,1845.2,1845.1,0.0081378]
[1743437156654,9.59298,1845.2,1845.1,0.0081378]
[1743437159457,5.3012,1845.2,1845.1,0.0081378]
[1743437159669,6.38518,1845.2,1845.1,1.0921678]
[1743437159954,6.38518,1845.2,1845.1,0.0081378]
[1743437160151,6.38518,1845.2,1845.1,1.4571378]
[1743437160751,2.53318,1845.2,1845.1,1.4571378]
[1743437161059,6.38518,1845.2,1845.1,1.4571378]
[1743437161352,6.38518,1845.2,1845.1,0.0081378]
[1743437162056,9.59298,1845.2,1845.1,0.0081378]
[1743437163760,6.10614,1845.4,1845.1,0.0081378]
[1743437163761,1.08393,1845.3,1845.2,1.08392]
[1743437163961,2.52123,1845.3,1845.2,2.52992]
[1743437166762,2.52123,1845.3,1845.2,2.52998]
[1743437167362,1.4373,1845.3,1845.2,2.52998]
[1743437167563,2.52122,1845.3,1845.2,2.52998]
[1743437167751,1.4373,1845.3,1845.2,2.52998]
[1743437167954,2.52122,1845.3,1845.2,2.52998]
[1743437169166,1.4373,1845.3,1845.2,2.52998]
[1743437169464,0.6867,1845.4,1845.3,1.08392]
[1743437169661,0.6867,1845.4,1845.3,2.48472]
[1743437170262,1.3812,1845.5,1845.4,1.08386]
[1743437170468,1.3812,1845.5,1845.4,2.48466]
[1743437170658,0.7485,1845.6,1845.5,1.0838]
[1743437170859,1.0917278,1845.9,1845.8,1.08362]
[1743437171066,2.4729278,1845.9,1845.8,1.08362]
[1743437171366,1.08374,1845.6,1845.5,1.08375]
[1743437171566,1.0838,1845.5,1845.4,2.51322]
[1743437171764,2.5652,1845.5,1845.4,1.4294]
[1743437171959,2.5652,1845.5,1845.4,2.51326]
[1743437172362,1.08397,1845.3,1845.2,1.08395]
[1743437172665,1.08397,1845.3,1845.2,2.51335]
[1743437172859,1.08392,1845.3,1845.2,2.51332]
[1743437173162,2.51102,1845.3,1845.2,2.51332]
[1743437173460,1.08398,1845.2,1845.1,0.0081378]
[1743437173667,2.51108,1845.2,1845.1,0.0081378]
[1743437177865,2.51108,1845.2,1845.1,1.0921678]
[1743437178062,2.51108,1845.2,1845.1,0.0081378]
[1743437178265,4.93294,1845.3,1845.2,1.08398]
[1743437178460,4.93294,1845.3,1845.2,2.55452474]
[1743437178764,4.93294,1845.3,1845.2,1.4768]
[1743437178960,6.32304,1845.3,1845.2,1.4768]
[1743437179561,1.08398,1845.2,1845.1,0.0081378]
[1743437179766,2.47408,1845.2,1845.1,0.0081378]
[1743437180361,2.47408,1845.2,1845.1,1.3838378]
[1743437180765,4.80145218,1845.4,1845.1,2.4678178]
[1743437181064,1.08392,1845.3,1845.2,1.79518]
[1743437181265,1.08392,1845.3,1845.2,2.0869]
[1743437181461,2.53492,1845.3,1845.2,2.0869]
[1743437181865,2.53492,1845.3,1845.1,0.7016378]
[1743437181866,1.08398,1845.2,1845.1,0.0081378]
[1743437182059,2.53498,1845.2,1845.1,0.0081378]
[1743437182260,2.53498,1845.2,1845.1,1.0921678]
[1743437182766,2.53498,1845.2,1845.1,0.0081378]
[1743437183168,2.53498,1845.2,1845.1,1.3838378]
[1743437184067,2.53498,1845.2,1845.1,2.4678678]
[1743437184263,2.53498,1845.2,1845.1,1.3838378]
[1743437184572,2.53498,1845.2,1845.1,2.4678678]
[1743437184868,2.53498,1845.2,1845.1,1.3838378]
[1743437185269,2.53498,1845.2,1845.1,2.4678678]
[1743437186772,2.53498,1845.2,1845.1,1.3838378]
[1743437186966,2.53498,1845.2,1845.1,2.4678678]
[1743437187770,2.53498,1845.2,1845.1,1.3838378]
[1743437188171,2.53498,1845.2,1844.7,3.40415]
[1743437188172,4.6393,1845.2,1844.4,1.0844]
[1743437188364,1.08448,1844.4,1844.3,1.0845]
[1743437188567,5.91862,1844.7,1844.4,1.08445]
[1743437188568,4.93243,1844.5,1844.4,1.08445]
[1743437189376,3.848,1844.5,1844.4,1.08445]
[1743437189770,4.93239,1844.5,1844.4,1.08445]
[1743437189968,6.38329,1844.5,1844.4,1.08445]
[1743437190575,5.2989,1844.5,1844.4,1.08445]
[1743437190868,1.08445,1844.4,1844.3,2.5610978]
[1743437191069,5.74315,1844.4,1844.3,1.4766378]
[1743437191272,6.43735,1844.4,1844.3,1.4766378]
[1743437191469,1.0846,1844.2,1843.9,3.2078]
[1743437191668,1.0846,1844.2,1844.1,1.08462]
[1743437191871,1.4509,1844.3,1844.0,1.4685]
[1743437191872,1.08462,1844.1,1844.0,1.4685]
[1743437192469,1.08462,1844.1,1844.0,2.55318]
[1743437192770,2.49702,1844.1,1844.0,2.55318]
[1743437193477,1.4124,1844.1,1844.0,2.55318]
[1743437193668,2.49702,1844.1,1844.0,2.55318]
[1743437194365,2.49702,1844.1,1844.0,1.4685]
[1743437194570,2.49702,1844.1,1844.0,2.55318]
[1743437195974,2.49702,1844.1,1844.0,1.4685]
[1743437196181,2.49702,1844.1,1844.0,2.55318]
[1743437196371,2.49702,1844.1,1844.0,1.4685]
[1743437196777,5.70482,1844.1,1844.0,1.4685]